fUST/lending_fUST_20250905
["ID","MTS","AMOUNT","RATE_DAILY","PERIOD"]
[383649452,1757067050412,-972.58,0.00014246,2]
[383649453,1757067050426,-1760.22,0.00014246,2]
[383649454,1757067050439,-795.15,0.00014246,2]
[383649455,1757067050454,-364.16,0.00014246,2]
[383649456,1757067050467,-1987.58,0.00014246,2]
[383649457,1757067050481,-480.0,0.00014246,2]
[383649458,1757067050495,-480.0,0.00014246,2]
[383649459,1757067050510,-480.0,0.00014246,2]
[383649460,1757067050522,-485.15,0.00014246,2]
[383649461,1757067050535,-551.87,0.00014246,2]
[383649462,1757067050550,-480.0,0.00014246,2]
[383649463,1757067050564,-480.0,0.00014246,2]
[383649464,1757067050580,-480.0,0.00014246,2]
[383649465,1757067050593,-480.0,0.00014246,2]
[383649466,1757067050604,-484.54,0.00014246,2]
[383649467,1757067050616,-571.62199891,0.00014246,2]
[383649468,1757067050628,-480.0,0.00014246,2]
[383649469,1757067050641,-1128.81,0.00014246,2]
[383649470,1757067050653,-177.62849224,0.00014246,2]
[383649471,1757067050672,-706.99,0.00014246,2]
[383649472,1757067050685,-480.0,0.00014246,2]
[383649473,1757067050698,-480.0,0.00014246,2]
[383649474,1757067050714,-529.74,0.00014246,2]
[383649475,1757067050728,-480.0,0.00014246,2]
[383649476,1757067050738,-480.0,0.00014246,2]
[383649477,1757067050749,-522.5,0.00014246,2]
[383649478,1757067050759,-6190.86,0.00014246,2]
[383649479,1757067050772,-504.12,0.00014246,2]
[383649480,1757067050787,-1006.85,0.00014246,2]
[383649481,1757067050800,-393.66,0.00014246,2]
[383649482,1757067050810,-1351.21,0.00014246,2]
[383649483,1757067050822,-480.0,0.00014246,2]
[383649484,1757067050834,-480.0,0.00014246,2]
[383649485,1757067050847,-1444.78,0.00014246,2]
[383649486,1757067050859,-492.77,0.00014246,2]
[383649487,1757067050871,-1224.37,0.00014246,2]
[383649488,1757067050883,-289.974,0.0001425,2]
[383649489,1757067050895,-150.062,0.0001425,2]
[383649490,1757067050906,-150.0,0.0001425,2]
[383649491,1757067050918,-150.068,0.00014277,2]
[383649492,1757067050929,-150.0,0.00014277,2]
[383649493,1757067050942,-150.049,0.00014277,2]
[383649494,1757067050953,-150.055,0.00014277,2]
[383649495,1757067050964,-975.0,0.00014277,2]
[383649496,1757067050975,-2153.0,0.00014277,2]
[383649497,1757067050987,-633.0,0.00014277,2]
[383649498,1757067050999,-308.0,0.00014298,2]
[383649499,1757067051010,-743.786131,0.000143,2]
[383649500,1757067051021,-439.1054816,0.000143,2]
[383649501,1757067051032,-187.24,0.00014342,2]
[383649502,1757067051044,-308.0,0.00014344,2]
[383649503,1757067051055,-308.0,0.00014403,2]
[383649504,1757067051066,-168.0,0.00014416,2]
[383649505,1757067051077,-4000.0,0.00014442,2]
[383649506,1757067051089,-168.0,0.00014446,2]
[383649507,1757067051100,-500.0,0.00014473,2]
[383649508,1757067051111,-501.98503494,0.00014473,2]
[383649509,1757067051122,-500.91877039,0.00014473,2]
[383649510,1757067051134,-500.0,0.00014473,2]
[383649511,1757067051146,-502.77729707,0.00014473,2]
[383649512,1757067051158,-500.0,0.00014473,2]
[383649513,1757067051169,-500.61309114,0.00014473,2]
[383649514,1757067051183,-500.0,0.00014473,2]
[383649515,1757067051195,-168.0,0.00014483,2]
[383649516,1757067051205,-150.358,0.00014493,2]
[383649517,1757067051216,-308.0,0.00014493,2]
[383649518,1757067051228,-3621.30703315,0.000145,2]
[383649519,1757067051240,-22802.1465469,0.000145,2]
[383649520,1757067051257,-1011.63711006,0.000145,2]
[383649521,1757067101449,1000.0,0.00018595,20]
[383649522,1757067186367,150.0,0.00015123,8]
[383649523,1757067195477,80661.28936188,0.00013598,2]
[383649524,1757067195506,110057.70599679,0.00013598,2]
[383649525,1757067340743,199.47484165,0.00013598,2]
[383649526,1757067620743,174.54048647,0.00013598,2]
[383649530,1757067901001,152.7229256,0.00013598,2]
[383649532,1757067949774,235.21894955,0.00013287,2]
[383649550,1757068181279,152.7229256,0.00013598,2]
[383649581,1757068232169,-300.0,0.00013696,2]
[383649583,1757068232178,-300.0,0.00013696,2]
[383649585,1757068232188,-300.0,0.00013696,2]
[383649587,1757068232198,-300.0,0.00013696,2]
[383649589,1757068232207,-1200.0,0.00013696,2]
[383649591,1757068232217,-500.0,0.00013697,2]
[383649593,1757068232226,-500.0,0.00013697,2]
[383649595,1757068232236,-500.0,0.00013697,2]
[383649597,1757068232251,-443.87,0.00013698,2]
[383649599,1757068232260,-480.0,0.00013698,2]
[383649601,1757068232270,-480.0,0.00013698,2]
[383649603,1757068232280,-480.0,0.00013698,2]
[383649605,1757068232289,-480.0,0.00013698,2]
[383649607,1757068232299,-480.0,0.00013698,2]
[383649609,1757068232308,-480.0,0.00013698,2]
[383649612,1757068232317,-480.0,0.00013698,2]
[383649615,1757068232327,-480.0,0.00013698,2]
[383649617,1757068232336,-181.02,0.00013698,2]
[383649619,1757068232345,-505.48596089,0.00013698,2]
[383649621,1757068232355,-480.0,0.00013698,2]
[383649623,1757068232364,-480.0,0.00013698,2]
[383649625,1757068232373,-480.0,0.00013698,2]
[383649627,1757068232383,-480.0,0.00013698,2]
[383649629,1757068232393,-480.0,0.00013698,2]
[383649631,1757068232402,-480.0,0.00013698,2]
[383649633,1757068232412,-480.0,0.00013698,2]
[383649635,1757068232422,-480.0,0.00013698,2]
[383649637,1757068232432,-480.0,0.00013698,2]
[383649639,1757068232441,-480.0,0.00013698,2]
[383649641,1757068232451,-480.0,0.00013698,2]
[383649643,1757068232460,-480.0,0.00013698,2]
[383649645,1757068232469,-480.0,0.00013698,2]
[383649646,1757068232480,-480.0,0.00013698,2]
[383649647,1757068232489,-480.0,0.00013698,2]
[383649648,1757068232498,-480.0,0.00013698,2]
[383649649,1757068232507,-480.0,0.00013698,2]
[383649650,1757068232517,-480.0,0.00013698,2]
[383649651,1757068232526,-480.0,0.00013698,2]
[383649652,1757068232536,-480.0,0.00013698,2]
[383649653,1757068232546,-480.0,0.00013698,2]
[383649654,1757068232556,-480.0,0.00013698,2]
[383649655,1757068232565,-480.0,0.00013698,2]
[383649656,1757068232575,-480.0,0.00013698,2]
[383649657,1757068232585,-480.0,0.00013698,2]
[383649658,1757068232595,-480.0,0.00013698,2]
[383649659,1757068232606,-480.0,0.00013698,2]
[383649660,1757068232617,-480.0,0.00013698,2]
[383649661,1757068232628,-480.0,0.00013698,2]
[383649662,1757068232637,-480.0,0.00013698,2]
[383649663,1757068232647,-480.0,0.00013698,2]
[383649664,1757068232658,-480.0,0.00013698,2]
[383649665,1757068232667,-290.85410036,0.00013698,2]
[383649666,1757068232680,-189.14589964,0.00013698,2]
[383649667,1757068232689,-480.0,0.00013698,2]
[383649668,1757068232698,-480.0,0.00013698,2]
[383649669,1757068232708,-480.0,0.00013698,2]
[383649670,1757068232717,-784.061282,0.00013698,2]
[383649671,1757068232730,-741.54415851,0.00013698,2]
[383649672,1757068232749,-741.26539315,0.00013698,2]
[383649673,1757068232760,-3183.14916634,0.00013698,2]
[383649674,1757068232769,-480.0,0.00013698,2]
[383649675,1757068232778,-565.86,0.00013698,2]
[383649676,1757068232788,-492.13,0.00013698,2]
[383649677,1757068232797,-480.0,0.00013698,2]
[383649678,1757068232806,-480.0,0.00013698,2]
[383649679,1757068232816,-1160.51,0.00013698,2]
[383649680,1757068232825,-480.0,0.00013698,2]
[383649681,1757068232834,-2119.15556119,0.00013698,2]
[383649701,1757068238100,-151.85443881,0.00013698,2]
[383649702,1757068238110,-149.85729394,0.00013698,2]
[383649703,1757068238123,-330.14270606,0.00013698,2]
[383649704,1757068238133,-480.0,0.00013698,2]
[383649705,1757068238143,-480.0,0.00013698,2]
[383649706,1757068238154,-480.0,0.00013698,2]
[383649707,1757068238164,-545.3,0.00013698,2]
[383649708,1757068238174,-480.0,0.00013698,2]
[383649709,1757068238184,-775.39,0.00013698,2]
[383649710,1757068238194,-221.64754935,0.00013698,2]
[383649711,1757068238205,-258.35245065,0.00013698,2]
[383649712,1757068238216,-2406.72,0.00013698,2]
[383649713,1757068238227,-480.0,0.00013698,2]
[383649714,1757068238236,-480.0,0.00013698,2]
[383649715,1757068238245,-2727.21878017,0.00013698,2]
[383649768,1757068246387,-30211.55121983,0.00013698,2]
[383649769,1757068246399,-482.39355602,0.00013698,2]
[383649770,1757068246409,-550.46,0.00013698,2]
[383649771,1757068246419,-480.0,0.00013698,2]
[383649772,1757068246429,-1061.08,0.00013698,2]
[383649773,1757068246438,-480.0,0.00013698,2]
[383649774,1757068246447,-480.0,0.00013698,2]
[383649775,1757068246459,-627.62,0.00013698,2]
[383649776,1757068246471,-589.36,0.00013698,2]
[383649777,1757068246480,-480.0,0.00013698,2]
[383649778,1757068246490,-641.21,0.00013698,2]
[383649779,1757068246500,-480.0,0.00013698,2]
[383649780,1757068246509,-480.0,0.00013698,2]
[383649781,1757068246518,-480.0,0.00013698,2]
[383649782,1757068246528,-480.0,0.00013698,2]
[383649783,1757068246537,-167.58,0.00013698,2]
[383649784,1757068246547,-480.0,0.00013698,2]
[383649785,1757068246558,-480.0,0.00013698,2]
[383649786,1757068246568,-1122.21,0.00013698,2]
[383649787,1757068246578,-480.0,0.00013698,2]
[383649788,1757068246587,-480.0,0.00013698,2]
[383649789,1757068246596,-792.72,0.00013698,2]
[383649790,1757068246606,-480.0,0.00013698,2]
[383649791,1757068246616,-484.5,0.00013698,2]
[383649792,1757068246625,-482.89,0.00013698,2]
[383649793,1757068246634,-1714.87,0.00013698,2]
[383649794,1757068246644,-937.31,0.00013698,2]
[383649795,1757068246653,-480.0,0.00013698,2]
[383649796,1757068246663,-480.0,0.00013698,2]
[383649797,1757068246672,-480.0,0.00013698,2]
[383649798,1757068246681,-480.0,0.00013698,2]
[383649799,1757068246694,-480.0,0.00013698,2]
[383649800,1757068246703,-755.75,0.00013698,2]
[383649801,1757068246712,-1917.1,0.00013698,2]
[383649802,1757068246721,-480.0,0.00013698,2]
[383649803,1757068246731,-1036.67,0.00013698,2]
[383649804,1757068246740,-480.0,0.00013698,2]
[383649805,1757068246750,-173.68275489,0.00013698,2]
[383649806,1757068246759,-501.1,0.00013698,2]
[383649807,1757068246768,-516.29,0.00013698,2]
[383649808,1757068246779,-480.0,0.00013698,2]
[383649809,1757068246789,-480.0,0.00013698,2]
[383649810,1757068246798,-480.0,0.00013698,2]
[383649811,1757068246807,-1242.31,0.00013698,2]
[383649812,1757068246817,-480.0,0.00013698,2]
[383649813,1757068246827,-480.0,0.00013698,2]
[383649814,1757068246836,-480.0,0.00013698,2]
[383649815,1757068246847,-962.71,0.00013698,2]
[383649816,1757068246856,-480.0,0.00013698,2]
[383649817,1757068246866,-678.62,0.00013698,2]
[383649818,1757068246875,-1440.0,0.00013698,2]
[383649819,1757068246884,-1483.68,0.00013698,2]
[383649820,1757068246895,-480.0,0.00013698,2]
[383649821,1757068246907,-490.74440769,0.00013698,2]
[383649822,1757068246916,-776.85,0.00013698,2]
[383649823,1757068246925,-480.0,0.00013698,2]
[383649824,1757068246935,-480.0,0.00013698,2]
[383649825,1757068246944,-480.0,0.00013698,2]
[383649826,1757068246953,-480.0,0.00013698,2]
[383649827,1757068246963,-566.75802029,0.00013698,2]
[383649828,1757068246972,-480.0,0.00013698,2]
[383649829,1757068246981,-480.0,0.00013698,2]
[383649830,1757068246991,-5508.56,0.00013698,2]
[383649831,1757068247001,-1197.37,0.00013698,2]
[383649832,1757068247010,-523.74,0.00013698,2]
[383649833,1757068247020,-554.01124,0.00013699,2]
[383649834,1757068247032,-1000.0,0.00013955,2]
[383649835,1757068247043,-1000.0,0.00013955,2]
[383649836,1757068247054,-1000.0,0.00013955,2]
[383649837,1757068247063,-1000.0,0.00013955,2]
[383649838,1757068247074,-1000.0,0.00013955,2]
[383649839,1757068247085,-1000.0,0.00013955,2]
[383649840,1757068247094,-300.0,0.00013971,2]
[383649841,1757068247104,-300.0,0.00013971,2]
[383649842,1757068247115,-300.0,0.00013971,2]
[383649843,1757068247127,-300.0,0.00013971,2]
[383649844,1757068247136,-300.0,0.00013971,2]
[383649845,1757068247147,-300.0,0.00013971,2]
[383649846,1757068247157,-300.0,0.00013971,2]
[383649847,1757068247172,-300.0,0.00013971,2]
[383649848,1757068247184,-300.0,0.00013971,2]
[383649849,1757068247198,-300.0,0.00013971,2]
[383649850,1757068247208,-300.0,0.00013971,2]
[383649851,1757068247218,-300.0,0.00013971,2]
[383649852,1757068247228,-300.0,0.00013971,2]
[383649853,1757068247238,-300.0,0.00013971,2]
[383649854,1757068247247,-300.0,0.00013971,2]
[383649855,1757068247257,-600.0,0.00013971,2]
[383649856,1757068247267,-202.49543921,0.00013971,2]
[383649857,1757068247277,-500.0,0.00013971,2]
[383649858,1757068247287,-500.0,0.00013971,2]
[383649859,1757068247296,-188.85087873,0.00013971,2]
[383649860,1757068247307,-500.0,0.00013971,2]
[383649861,1757068247318,-500.0,0.00013971,2]
[383649862,1757068247329,-500.0,0.00013971,2]
[383649863,1757068247338,-174.61723325,0.00013971,2]
[383649864,1757068247347,-500.0,0.00013971,2]
[383649865,1757068247357,-500.0,0.00013971,2]
[383649866,1757068247366,-500.0,0.00013971,2]
[383649867,1757068247376,-500.0,0.00013971,2]
[383649868,1757068247386,-450.0,0.00013971,2]
[383649869,1757068247398,-1000.0,0.00013972,2]
[383649870,1757068247407,-1000.0,0.00013972,2]
[383649871,1757068247418,-1000.0,0.00013972,2]
[383649872,1757068247427,-1000.0,0.00013972,2]
[383649873,1757068247437,-1000.0,0.00013972,2]
[383649874,1757068247447,-1000.0,0.00013972,2]
[383649875,1757068247456,-1000.0,0.00013972,2]
[383649876,1757068247466,-1000.0,0.00013972,2]
[383649877,1757068247477,-1000.0,0.00013972,2]
[383649878,1757068247486,-1000.0,0.00013972,2]
[383649879,1757068247495,-1000.0,0.00013972,2]
[383649880,1757068247505,-1000.0,0.00013972,2]
[383649881,1757068247514,-1000.0,0.00013972,2]
[383649882,1757068247523,-1000.0,0.00013972,2]
[383649883,1757068247532,-1000.0,0.00013972,2]
[383649884,1757068247541,-1000.0,0.00013972,2]
[383649885,1757068247551,-1000.0,0.00013972,2]
[383649886,1757068247561,-1000.0,0.00013972,2]
[383649887,1757068247571,-1000.0,0.00013972,2]
[383649888,1757068247580,-1000.0,0.00013972,2]
[383649889,1757068247589,-1000.0,0.00013972,2]
[383649890,1757068247598,-1000.0,0.00013972,2]
[383649891,1757068247607,-1000.0,0.00013972,2]
[383649892,1757068247616,-1000.0,0.00013972,2]
[383649893,1757068247626,-480.0,0.00013972,2]
[383649894,1757068247635,-480.0,0.00013972,2]
[383649895,1757068247645,-484.98888329,0.00013972,2]
[383649896,1757068247654,-480.0,0.00013972,2]
[383649897,1757068247663,-480.0,0.00013972,2]
[383649898,1757068247672,-354.13896447,0.00013972,2]
[383649899,1757068247681,-480.0,0.00013972,2]
[383649900,1757068247690,-480.0,0.00013972,2]
[383649901,1757068247699,-480.0,0.00013972,2]
[383649902,1757068247708,-480.0,0.00013972,2]
[383649903,1757068247717,-480.0,0.00013972,2]
[383649904,1757068247727,-480.0,0.00013972,2]
[383649905,1757068247736,-534.02912273,0.00013972,2]
[383649906,1757068247745,-480.0,0.00013972,2]
[383649907,1757068247755,-480.0,0.00013972,2]
[383649908,1757068247764,-482.35707183,0.00013972,2]
[383649909,1757068247774,-480.0,0.00013972,2]
[383649910,1757068247783,-480.0,0.00013972,2]
[383649911,1757068247792,-480.0,0.00013972,2]
[383649912,1757068247801,-480.0,0.00013972,2]
[383649913,1757068247810,-480.0,0.00013972,2]
[383649914,1757068247819,-480.0,0.00013972,2]
[383649915,1757068247829,-480.0,0.00013972,2]
[383649916,1757068247838,-480.0,0.00013972,2]
[383649917,1757068247847,-480.0,0.00013972,2]
[383649918,1757068247857,-261.97379651,0.00013972,2]
[383649919,1757068247866,-480.0,0.00013972,2]
[383649920,1757068247875,-480.0,0.00013972,2]
[383649921,1757068247884,-151.0,0.00013972,2]
[383649922,1757068247894,-151.0,0.00013972,2]
[383649923,1757068247903,-480.0,0.00013972,2]
[383649924,1757068247912,-480.0,0.00013972,2]
[383649925,1757068247922,-480.0,0.00013972,2]
[383649926,1757068247931,-480.0,0.00013972,2]
[383649927,1757068247940,-480.0,0.00013972,2]
[383649928,1757068247950,-151.0,0.00013972,2]
[383649929,1757068247960,-480.0,0.00013972,2]
[383649930,1757068247969,-480.0,0.00013972,2]
[383649931,1757068247979,-480.0,0.00013972,2]
[383649932,1757068247988,-151.0,0.00013972,2]
[383649933,1757068247997,-151.0,0.00013972,2]
[383649934,1757068248103,-151.0,0.00013972,2]
[383649935,1757068248113,-209.50380081,0.00013972,2]
[383649936,1757068248122,-480.0,0.00013972,2]
[383649937,1757068248132,-153.983038,0.00013972,2]
[383649938,1757068248143,-480.0,0.00013972,2]
[383649939,1757068248153,-480.0,0.00013972,2]
[383649940,1757068248162,-480.0,0.00013972,2]
[383649941,1757068248172,-151.0,0.00013972,2]
[383649942,1757068248182,-151.0,0.00013972,2]
[383649943,1757068248191,-151.0,0.00013972,2]
[383649944,1757068248200,-480.0,0.00013972,2]
[383649945,1757068248210,-565.86,0.00013972,2]
[383649946,1757068248219,-151.0,0.00013972,2]
[383649947,1757068248229,-151.0,0.00013972,2]
[383649948,1757068248238,-480.0,0.00013972,2]
[383649949,1757068248248,-151.0,0.00013972,2]
[383649950,1757068248258,-480.0,0.00013972,2]
[383649951,1757068248267,-480.0,0.00013972,2]
[383649952,1757068248277,-2271.01,0.00013972,2]
[383649953,1757068248286,-480.0,0.00013972,2]
[383649954,1757068248296,-151.0,0.00013972,2]
[383649955,1757068248306,-465.114332,0.00013972,2]
[383649956,1757068248315,-151.0,0.00013972,2]
[383649957,1757068248325,-480.0,0.00013972,2]
[383649958,1757068248334,-480.0,0.00013972,2]
[383649959,1757068248344,-151.0,0.00013972,2]
[383649960,1757068248353,-545.3,0.00013972,2]
[383649961,1757068248363,-480.0,0.00013972,2]
[383649962,1757068248373,-151.0,0.00013972,2]
[383649963,1757068248383,-151.0,0.00013972,2]
[383649964,1757068248392,-775.39,0.00013972,2]
[383649965,1757068248401,-151.0,0.00013972,2]
[383649966,1757068248411,-480.0,0.00013972,2]
[383649967,1757068248420,-151.0,0.00013972,2]
[383649968,1757068248430,-192.24476,0.00013972,2]
[383649969,1757068248439,-2406.72,0.00013972,2]
[383649970,1757068248449,-480.0,0.00013972,2]
[383649971,1757068248458,-32938.77,0.00013972,2]
[383649972,1757068248468,-550.46,0.00013972,2]
[383649973,1757068248477,-1061.08,0.00013972,2]
[383649974,1757068248490,-480.0,0.00013972,2]
[383649975,1757068248500,-480.0,0.00013972,2]
[383649976,1757068248510,-627.62,0.00013972,2]
[383649977,1757068248520,-589.36,0.00013972,2]
[383649978,1757068248530,-480.0,0.00013972,2]
[383649979,1757068248540,-641.21,0.00013972,2]
[383649980,1757068248550,-539.87026851,0.00013972,2]
[383649981,1757068248559,-480.0,0.00013972,2]
[383649982,1757068248569,-154.565898,0.00013972,2]
[383649983,1757068248578,-151.0,0.00013972,2]
[383649984,1757068248588,-480.0,0.00013972,2]
[383649985,1757068248598,-151.0,0.00013972,2]
[383649986,1757068248607,-480.0,0.00013972,2]
[383649987,1757068248617,-151.0,0.00013972,2]
[383649988,1757068248627,-151.0,0.00013972,2]
[383649989,1757068248637,-480.0,0.00013972,2]
[383649990,1757068248647,-151.0,0.00013972,2]
[383649991,1757068248656,-151.0,0.00013972,2]
[383649992,1757068248665,-480.0,0.00013972,2]
[383649993,1757068248676,-219.196088,0.00013972,2]
[383649994,1757068248685,-1122.21,0.00013972,2]
[383649995,1757068248695,-480.0,0.00013972,2]
[383649996,1757068248705,-151.81616,0.00013972,2]
[383649997,1757068248715,-480.0,0.00013972,2]
[383649998,1757068248724,-792.72,0.00013972,2]
[383649999,1757068248734,-480.0,0.00013972,2]
[383650000,1757068248744,-151.0,0.00013972,2]
[383650001,1757068248753,-151.0,0.00013972,2]
[383650002,1757068248763,-484.5,0.00013972,2]
[383650003,1757068248774,-482.89,0.00013972,2]
[383650004,1757068248784,-1714.87,0.00013972,2]
[383650005,1757068248794,-937.31,0.00013972,2]
[383650006,1757068248804,-480.0,0.00013972,2]
[383650007,1757068248814,-480.0,0.00013972,2]
[383650008,1757068248823,-480.0,0.00013972,2]
[383650009,1757068248833,-480.0,0.00013972,2]
[383650010,1757068248842,-480.0,0.00013972,2]
[383650011,1757068248852,-755.75,0.00013972,2]
[383650012,1757068248862,-1917.1,0.00013972,2]
[383650013,1757068248871,-480.0,0.00013972,2]
[383650014,1757068248881,-1036.67,0.00013972,2]
[383650015,1757068248891,-480.0,0.00013972,2]
[383650016,1757068248901,-501.1,0.00013972,2]
[383650017,1757068248910,-516.29,0.00013972,2]
[383650018,1757068248920,-480.0,0.00013972,2]
[383650019,1757068248931,-480.0,0.00013972,2]
[383650020,1757068248940,-480.0,0.00013972,2]
[383650021,1757068248950,-1242.31,0.00013972,2]
[383650022,1757068248959,-480.0,0.00013972,2]
[383650023,1757068248969,-480.0,0.00013972,2]
[383650024,1757068248979,-480.0,0.00013972,2]
[383650025,1757068248989,-962.71,0.00013972,2]
[383650026,1757068248999,-480.0,0.00013972,2]
[383650027,1757068249008,-678.62,0.00013972,2]
[383650028,1757068249018,-1440.0,0.00013972,2]
[383650029,1757068249030,-1483.68,0.00013972,2]
[383650030,1757068249041,-151.0,0.00013972,2]
[383650031,1757068249050,-151.0,0.00013972,2]
[383650032,1757068249061,-480.0,0.00013972,2]
[383650033,1757068249071,-776.85,0.00013972,2]
[383650034,1757068249082,-480.0,0.00013972,2]
[383650035,1757068249092,-313.67397097,0.00013972,2]
[383650036,1757068249101,-151.0,0.00013972,2]
[383650037,1757068249113,-151.0,0.00013972,2]
[383650038,1757068249123,-480.0,0.00013972,2]
[383650039,1757068249132,-480.0,0.00013972,2]
[383650040,1757068249142,-222.904493,0.00013972,2]
[383650041,1757068249152,-480.0,0.00013972,2]
[383650042,1757068249162,-222.904493,0.00013972,2]
[383650043,1757068249172,-222.904493,0.00013972,2]
[383650044,1757068249182,-151.0,0.00013972,2]
[383650045,1757068249192,-222.904493,0.00013972,2]
[383650046,1757068249204,-151.0,0.00013972,2]
[383650047,1757068249218,-222.904493,0.00013972,2]
[383650048,1757068249232,-222.904493,0.00013972,2]
[383650049,1757068249245,-151.0,0.00013972,2]
[383650050,1757068249259,-151.0,0.00013972,2]
[383650051,1757068249270,-222.904493,0.00013972,2]
[383650052,1757068249282,-222.904493,0.00013972,2]
[383650053,1757068249295,-151.0,0.00013972,2]
[383650054,1757068249307,-151.0,0.00013972,2]
[383650055,1757068249320,-5508.56,0.00013972,2]
[383650056,1757068249333,-1197.37,0.00013972,2]
[383650057,1757068249346,-523.74,0.00013972,2]
[383650058,1757068249358,-263.13513426,0.00013973,2]
[383650059,1757068249371,-500.0,0.00013973,2]
[383650060,1757068249385,-500.0,0.00013973,2]
[383650061,1757068249397,-500.85652594,0.00013973,2]
[383650062,1757068249409,-500.0,0.00013973,2]
[383650063,1757068249421,-199.36933048,0.00013973,2]
[383650064,1757068249436,-500.0,0.00013973,2]
[383650065,1757068249448,-500.0,0.00013973,2]
[383650066,1757068249460,-500.0,0.00013973,2]
[383650067,1757068249474,-500.0,0.00013973,2]
[383650068,1757068249487,-511.8682518,0.00013973,2]
[383650069,1757068249500,-502.70008143,0.00013973,2]
[383650070,1757068249511,-500.0,0.00013973,2]
[383650071,1757068249522,-500.0,0.00013973,2]
[383650072,1757068249534,-500.0,0.00013973,2]
[383650073,1757068249546,-500.0,0.00013973,2]
[383650074,1757068249558,-151.0,0.00013973,2]
[383650075,1757068249572,-151.0,0.00013973,2]
[383650076,1757068249584,-301.99,0.00014,2]
[383650077,1757068249598,-169.215452,0.00014,2]
[383650078,1757068249610,-151.0,0.00014,2]
[383650079,1757068249624,-151.0,0.00014,2]
[383650080,1757068249636,-151.0,0.00014,2]
[383650081,1757068249649,-151.0,0.00014,2]
[383650082,1757068249660,-204.690058,0.00014,2]
[383650083,1757068249671,-151.0,0.00014,2]
[383650084,1757068249681,-151.0,0.00014,2]
[383650085,1757068249692,-222.904493,0.00014,2]
[383650086,1757068249704,-222.904493,0.00014,2]
[383650087,1757068249716,-151.0,0.00014,2]
[383650088,1757068249729,-222.904493,0.00014,2]
[383650089,1757068249742,-282.23432,0.00014,2]
[383650090,1757068249752,-222.904493,0.00014,2]
[383650091,1757068249764,-151.0,0.00014,2]
[383650092,1757068249775,-40355.73766412,0.00014,2]
[383650093,1757068249795,-4619.19156626,0.00014,2]
[383650094,1757068249823,-1125.72127738,0.00014,2]
[383650095,1757068284355,300.0,0.0001356,2]
[383650096,1757068306046,1000.0,0.00018595,20]
[383650097,1757068314884,2675.15006725,0.00013598,2]
[383650098,1757068446713,152.7229256,0.00013598,2]
[383650100,1757068706798,152.7229256,0.00013598,2]
[383650102,1757068836693,503.0,0.00025,30]
[383650105,1757068952228,152.7229256,0.00013598,2]
[383650106,1757068958375,168.0,0.00013686,2]
[383650107,1757068997698,1500.0,0.0001356,2]
[383650108,1757069005753,1500.0,0.0001356,2]
[383650109,1757069007268,210.25,0.00012329,2]
[383650110,1757069022236,1500.0,0.0001356,2]